Cogmind - Beta 14 @@@ ROGUE MODE // 2024.08.12 @ 19:07:55 Player: Gaffe Result: Destroyed by G-47 Trooper with Particle Gun Performance ------------- Evolutions (2) 1000 Regions Visited (3) 600 Robots Destroyed (32) 160 Value Destroyed (995) 995 Prototype IDs (0) 0 Alien Tech Used (0) 0 Bonus (0) 0 TOTAL SCORE: 2755 Bonus ------- None Cogmind --------- Core Integrity 0/550 Matter 290/300 Energy 215/300 System Corruption 0% Temperature Cool (27) Movement Core (250) Ox4 Location -8/Materials Parts ------- > --- POWER (2) -------- (None) > --- PROPULSION (4) --- (None) > --- UTILITY (3) ------ Cooling System Medium Storage Unit Compact Battery > --- WEAPON (2) ------- (None) > --- INVENTORY (10) --- Cryofiber Web Cooling System Advanced Weight Redist. System Target Analyzer Hardened Medium Armor Plating Hardened Medium Armor Plating Peak State ------------ > --- POWER ------------ Improved Ion Engine Light Nuclear Core > --- PROPULSION ------- VTOL Module VTOL Module VTOL Module > --- UTILITY ---------- Cooling System Medium Storage Unit Advanced Weight Redist. System > --- WEAPON ----------- Shock Rifle Beam Rifle > --- INVENTORY -------- Cryofiber Web Cooling System Compact Battery Target Analyzer Hardened Medium Armor Plating Hardened Medium Armor Plating Heavy EM Pulse Gun Shock Rifle Beam Rifle [Rating: 24] Favorites ----------- Power Improved Ion Engine Engine Improved Ion Engine Power Core Light Nuclear Core Propulsion Aluminum Leg Leg Aluminum Leg Flight Unit VTOL Module Utility Medium Storage Unit Device Cooling System Storage Medium Storage Unit Protection Hardened Medium Armor Plating Weapon Shock Rifle Energy Gun Shock Rifle Ballistic Gun Assault Rifle Build | -11 -10 -9 -8 ------- Run | Yrd Mat Mat Mat Slots Evolved 4 | . . 2 2 Power 1 | . . . 1 Propulsion 2 | . . 1 1 Utility 1 | . . 1 . Weapon . | . . . . Parts Attached 42 | 6 6 11 19 Power 8 | 1 1 2 4 Engine 6 | 1 . 2 3 Core 2 | . 1 . 1 Reactor . | . . . . Propulsion 9 | 2 . 2 5 Treads . | . . . . Leg 5 | 2 . 2 1 Wheel . | . . . . Hover . | . . . . Flight 4 | . . . 4 Utility 13 | 1 3 4 5 Device 5 | . 1 . 4 Storage 5 | 1 1 2 1 Processor . | . . . . Hackware . | . . . . Protection 3 | . 1 2 . Artifact . | . . . . Weapon 12 | 2 2 3 5 Energy Gun 10 | 1 1 3 5 Energy Cannon . | . . . . Ballistic Gun 2 | 1 1 . . Ballistic Cannon . | . . . . Launcher . | . . . . Special Weapon . | . . . . Impact Weapon . | . . . . Slashing Weapon . | . . . . Piercing Weapon . | . . . . Special Melee Weapon . | . . . . Unidentified Prototypes . | . . . . Parts Lost 14 | . . . 14 Power 2 | . . . 2 Propulsion 7 | . . . 7 Utility . | . . . . Weapon 5 | . . . 5 Highest Loss Streak 4 | . . . 4 To Critical Strikes . | . . . . Average Slot Usage (%) 86 | . 98 93 75 Engine 8 | . 5 6 11 Core 4 | . 8 4 3 Leg 21 | . 28 32 12 Flight 3 | . . . 7 Device 12 | . 9 11 13 Storage 10 | . 14 11 9 Protection 3 | . 2 5 2 Energy Gun 15 | . 14 19 15 Ballistic Gun 4 | . 14 2 . Peak Build Rating 24 | 6 12 19 24 Average Rating 15 | 4 10 15 18 On Entrance 9 | . 6 12 19 Naked Turns . | . . . . Heaviest Build 40 | 13 22 33 40 Greatest Support 40 | 20 20 30 40 Greatest Overweight (x) 4 | . 1 1 4 Average Overweight (x) . | . . . 1 Largest Inventory Capacity 10 | 8 10 10 10 Average Capacity 9 | 6 8 10 10 Most Carried 10 | 1 10 10 10 Average Carried 7 | . 6 9 8 Final Capacity 10 | 8 10 10 10 Final Carried 10 | 1 10 10 6 Class Distribution -------------------- 96% | Mutant Dominant Class ---------------- Mutant | -10/Materials Mutant | -9/Materials Mutant | -8/Materials Resources | -11 -10 -9 -8 ----------- Run | Yrd Mat Mat Mat Matter Collected 680 | 178 119 162 221 Remotely . | . . . . Salvage Created 1276 | . 222 266 788 Parts 71 | . 15 17 39 Haulers Intercepted . | . . . . Recyclers Shooed . | . . . . Parts Field Recycled . | . . . . Retrieved Matter . | . . . . Parts Self-Destructed . | . . . . Prevented . | . . . . Kills | -11 -10 -9 -8 ------- Run | Yrd Mat Mat Mat Combat Hostiles Destroyed 28 | . 7 4 17 Guns 25 | . 7 3 15 AOE 2 | . . 1 1 Classes Destroyed 5 | . 2 3 . Builder 1 | . . 1 . Watcher 3 | . . 2 1 Swarmer 9 | . 3 . 6 Grunt 12 | . 4 2 6 Sentry 7 | . . 2 5 Best Kill Streak 3 | . 3 2 3 Combat Bots Only 3 | . 3 2 3 Max Kills in Single Turn 2 | . 1 2 2 Gunslinging 1 | . . . 1 Exploded 1 | . . 1 1 Melee . | . . . . Uniques/NPCs Destroyed . | . . . . Combat | -11 -10 -9 -8 -------- Run | Yrd Mat Mat Mat Hostile Shots Fired 226 | . 26 29 171 Missed 65 | . 6 8 51 Damage Taken 2277 | . 241 279 1757 Core 612 | . 29 24 559 Absorbed by Shields . | . . . . Core Remaining (%) 94 | 100 88 94 . Volleys Fired 118 | . 21 22 75 Largest 2 | . 2 2 2 Hottest 106 | . 76 101 106 Shots Fired 202 | . 41 44 117 Gun 202 | . 41 44 117 Cannon . | . . . . Launcher . | . . . . Special . | . . . . Kinetic 34 | . 21 13 . Thermal 87 | . 20 16 51 Explosive . | . . . . Electromagnetic 81 | . . 15 66 Robot Hit Streak 15 | . 15 8 10 Robot Miss Streak 6 | . 6 4 6 Penetration Max . | . . . . Secondary Targets 4 | . 1 . 3 Max Gunslinging Chain 1 | . 1 . 1 Shots Hit Robots 129 | . 24 31 74 Core Hits 55 | . 13 11 31 Critical Kills . | . . . . Critical Parts Destroyed . | . . . . Critical Strikes 5 | . . 1 4 Burn 5 | . . 1 4 Melee Attacks . | . . . . Impact . | . . . . Slashing . | . . . . Piercing . | . . . . Sneak Attacks . | . . . . Combat Hostiles . | . . . . Follow-up Attacks . | . . . . Damage Inflicted 2193 | . 321 546 1326 Guns 1945 | . 321 445 1179 Cannons . | . . . . Explosions 236 | . . 101 135 Melee . | . . . . Ramming 12 | . . . 12 Kinetic 299 | . 170 129 . Thermal 1035 | . 151 262 622 Explosive . | . . . . Electromagnetic 847 | . . 155 692 Impact . | . . . . Slashing . | . . . . Piercing . | . . . . Highest Corruption . | . . . . Average Corruption . | . . . . Corruption Purged . | . . . . Corruption Blocked . | . . . . Overload Shots . | . . . . Overflow Damage 56 | . . 6 50 Projectiles . | . . . . Explosions 56 | . . 6 50 Melee . | . . . . Knockbacks . | . . . . Impact . | . . . . Kinetic . | . . . . Secondary . | . . . . Self-Inflicted Damage 76 | . . . 76 Shots 2 | . . . 2 Rammed 1 | . . . 1 Targets Rammed 3 | . . . 3 Kicked 2 | . . . 2 Crushed . | . . . . Highest Temperature 196 | . 90 20 196 Average Temperature 56 | . 45 8 58 Received Heat Transfer 1161 | . 117 189 855 Siege Activations . | . . . . Robots Corrupted 1 | . . . 1 Combat Hostiles 1 | . . . 1 Parts Fried 5 | . . 1 4 Impact Corruptions . | . . . . Robots Melted . | . . . . Combat Hostiles . | . . . . Parts Melted 1 | . . . 1 Heat Transferred 2657 | . 372 631 1654 Parts Sabotaged . | . . . . Parts Stolen . | . . . . Parts Stripped . | . . . . Power Chain Reactions 4 | . . 2 2 Alert | -11 -10 -9 -8 ------- Run | Yrd Mat Mat Mat Peak Influence 282 | . 170 172 282 Initial 28 | . . 12 28 Average 111 | . 47 87 170 Maximum Alert Level 1 | . . . 1 Low Security (%) 83 | 100 100 100 63 Level 1 16 | . . . 36 Level 2 . | . . . . Level 3 . | . . . . Level 4 . | . . . . Level 5 . | . . . . High Security . | . . . . Max Security . | . . . . Squads Dispatched 1 | . . . 1 Investigation . | . . . . Extermination . | . . . . Reinforcement 1 | . . . 1 Assault . | . . . . Garrison . | . . . . Intercept . | . . . . Searches Triggered . | . . . . Construction Impeded . | . . . . Haulers Reinforced . | . . . . Active Scanning Responses . | . . . . Cargo Convoy Interrupts . | . . . . Stealth | -11 -10 -9 -8 --------- Run | Yrd Mat Mat Mat Distress Signals 4 | . 1 1 2 Communications Jammed . | . . . . Distress Signals . | . . . . Times Spotted 60 | . 13 10 37 Peak Tracking Total 6 | . 4 3 6 Tactical Retreats 6 | . . . 6 Traps | -11 -10 -9 -8 ------- Run | Yrd Mat Mat Mat Traps Triggered . | . . . . Indirectly . | . . . . Trap Hack Attempts . | . . . . Triggered . | . . . . Disarmed 6 | . . 6 . Reprogrammed . | . . . . Reused . | . . . . Traps Extracted . | . . . . Installed . | . . . . Triggered . | . . . . Machines | -11 -10 -9 -8 ---------- Run | Yrd Mat Mat Mat Machines Disabled . | . . . . Max in Single Turn . | . . . . Machines Repaired . | . . . . Machines Dismantled . | . . . . Machines Sabotaged . | . . . . Overloaded Fab Kills . | . . . . Hacking | -11 -10 -9 -8 --------- Run | Yrd Mat Mat Mat Machines Accessed 5 | . 1 4 . Terminals 4 | . 1 3 . Fabricators . | . . . . Repair Stations . | . . . . Recycling Units . | . . . . Scanalyzers 1 | . . 1 . Garrison Access . | . . . . Total Hacks 14 | . 1 13 . Successful 11 | . . 11 . Failed 3 | . 1 2 . Catastrophic 1 | . . 1 . Database Lockouts . | . . . . Manual . | . . . . Terminals 7 | . 1 6 . Fabricators . | . . . . Repair Stations . | . . . . Recycling Units . | . . . . Scanalyzers 7 | . . 7 . Garrison Access . | . . . . Terminal Hacks 4 | . . 4 . Robot Analysis 2 | . . 2 . Locate Traps 1 | . . 1 . Disarm Traps 1 | . . 1 . Fabricator Hacks . | . . . . Repair Station Hacks . | . . . . Recycling Unit Hacks . | . . . . Scanalyzer 7 | . . 7 . Insert Component 4 | . . 4 . Analyze 3 | . . 3 . Garrison Access Hacks . | . . . . Unauthorized Hacks . | . . . . Terminals . | . . . . Fabricators . | . . . . Repair Stations . | . . . . Recycling Units . | . . . . Scanalyzers . | . . . . Garrison Access . | . . . . Data Cores Recovered . | . . . . Used . | . . . . Hacking Detections 3 | . 1 2 . Full Trace Events . | . . . . Feedback Events . | . . . . Feedback Blocked . | . . . . Robot Schematics Acquired . | . . . . Robots Built . | . . . . Authchips . | . . . . Time . | . . . . Total Robot Build Rating . | . . . . Part Schematics Acquired 3 | . . 3 . Parts Built . | . . . . Authchips . | . . . . Time . | . . . . Total Part Build Rating . | . . . . Parts Repaired . | . . . . Time . | . . . . Parts Recycled . | . . . . Recycled Matter . | . . . . Retrieved Matter . | . . . . Retrieved Components . | . . . . Parts Scanalyzed 3 | . . 3 . Part Schematics Acquired 3 | . . 3 . Parts Damaged . | . . . . Bothacking | -11 -10 -9 -8 ------------ Run | Yrd Mat Mat Mat Used RIF Installer . | . . . . Robots Hacked . | . . . . Non-combat . | . . . . Combat . | . . . . Robot Hacks Applied . | . . . . Relay Couplers Released . | . . . . Fabnet Peak Effective % . | . . . . Robots Rewired . | . . . . Allies Hacked . | . . . . Hacks Repelled . | . . . . Allies | -11 -10 -9 -8 -------- Run | Yrd Mat Mat Mat Total Allies . | . . . . Largest Group . | . . . . Highest-Rated Group . | . . . . Highest-Rated Ally . | . . . . Total Orders . | . . . . Ally Attacks . | . . . . Total Damage . | . . . . Kills . | . . . . Allies Corrupted . | . . . . Allies Melted . | . . . . Intel | -11 -10 -9 -8 ------- Run | Yrd Mat Mat Mat Robot Analysis Total 2 | . . 2 . Derelict Logs Recovered . | . . . . Drone Launches . | . . . . Drone Recoveries . | . . . . Exploration | -11 -10 -9 -8 ------------- Run | Yrd Mat Mat Mat Turns Passed 2140 | 87 590 486 977 Spaces Moved 1035 | 67 318 291 359 Core 19 | 6 . . 13 Treads . | . . . . Legs 862 | 61 318 291 192 Wheels . | . . . . Hover . | . . . . Flight 154 | . . . 154 Fastest Speed 27 | 50 120 120 27 Average Speed 140 | 113 144 127 152 Slowest Speed 330 | 120 190 190 330 Overloaded Moves . | . . . . Propulsion Burnouts . | . . . . Robots Hopped . | . . . . Cave-ins Triggered . | . . . . Exploration Rate (%) 26 | 3 45 30 27 Regions Visited 3 Branch Regions . Pre-discovered Areas . | . . . . Known Exits Taken . | . . . . Unknown Exits Taken 3 | 1 1 1 . Scrap Searched . | . . . . Spaces Dug . | . . . . Terrain Destroyed 14 | . . 10 4 Melee . | . . . . Projectile . | . . . . AOE 14 | . . 10 4 Terrain Rammed . | . . . . Walls Destroyed . | . . . . Machines Disabled . | . . . . Actions | -11 -10 -9 -8 --------- Run | Yrd Mat Mat Mat Total 1522 | 76 409 363 674 Wait 264 | . 46 19 199 Move 1032 | 66 317 290 359 Hop . | . . . . Pick Up 35 | 4 14 10 7 Fast Attach 11 | 3 . 2 6 Attach 17 | 3 2 3 9 Detach 5 | . 1 1 3 Swap 14 | . 4 6 4 Drop 23 | . 4 10 9 Fire 118 | . 21 22 75 Melee . | . . . . Ram 1 | . . . 1 Kick 2 | . . . 2 Crush . | . . . . Escape Stasis . | . . . . Rewire . | . . . . Trap . | . . . . Miscellaneous . | . . . . Route ------- -11/Scrapyard -10/Materials -9/Materials -8/Materials History --------- Turn | Location | Event 4 | -11/Scrapyard | Discovered new exit (range 15) 88 | -11/Scrapyard | Entered Materials 309 | -10/Materials | Build established: Mutant 376 | -10/Materials | Discovered new exit (range 16) 678 | -10/Materials | Entered another Materials area 678 | -9/Materials | Evolved 2 slots: Propulsion x1, Utility x1 1129 | -9/Materials | Discovered new exit (range 16) 1164 | -9/Materials | Entered another Materials area 1164 | -8/Materials | Evolved 2 slots: Power x1, Propulsion x1 1387 | -8/Materials | Lost 3 parts (2n1w) 2047 | -8/Materials | Core integrity fell below 50% 2123 | -8/Materials | Core integrity fell below 20% 2141 | -8/Materials | Destroyed by G-47 Trooper with Particle Gun Last Messages --------------- reinforcements to Terminal M003. Critical hit (Burn: +37). Imp. Ion Engine melted. Y-45 Defender destroyed. U-05 Engineer builds a Door. K-01 Serf collects debris. Y-45 Defender destroyed. G-47 Trooper suffers critical hit (Burn). VTOL Module destroyed. G-47 Trooper overheating. Imp. Ion Engine destroyed. G-47 Trooper overheating. Slammed into M-28 Smith. G-47 Trooper overheating. Critical hit (Burn: +37). Beam Rifle destroyed. K-01 Serf collects debris. R-06 Scavenger collects Corrupted Adv. Heat Sink. Critical hit (Burn: +37). Map ----- +----------------------------------------------------+ | #?????????# ###?#####+#####??????????????????? | | ########### !!####### %% #????????????????????? | | =% !!%! [ #????????????????????? | | ! !!!%% #????????????????????? | | = #????????????????????? | | #################+### #????????????????????? | | #??????????# !## ##????????????????????? | | #??????????# """ ## #?????????????????????? | | #??????????# """ ## #?????????????????????? | | #??????????# """ ## ############??????????? | | #??????????# ## % ??????? | | #??????????# """ ## ??????? | | #??????????# """ ## ######## ??????? | | #??????????# """ ## #???????????? ???????? | | +??????????# ] ## #?????????????????????? | | "%???????????#?######### #?????????????????????? | | ?????????????# "T" + r #?????????????????????? | | ?????????????# #%[ #?????????????????????? | | ???????????????# ]#* #?????????????????????? | | ???????????????######### #?????????????????????? | | ???????????????????????# #?????????????????????? | | ???????????????????????# #?????????????????????? | | ???????????????????????# #?????????????????????? | | ???????????????????????# #?????????????????????? | | ???????????????????????# #?????????????????????? | | ???????????????????????# @ #?????????????????????? | | ???????????????????????# #?????????????????????? | | ???????????????????????# %#?????? #?????????????? | | ???????????????????????#gkg#????? ?????##???????? | | ??????????????# ### !%#####+### #???????? | | ??????????????# = ????? | | ??????????????# % ????? | | ??????????????# ????? | | ??????????????###################### ##??????? | | ???????????????????????????????????????###???????? | | ?????????????????????????????????????????????????? | | ?????????????????????????????????????????????????? | | ?????????????????????????????????????????????????? | | ?????????????????????????????????????????????????? | | ?????????????????????????????????????????????????? | | ?????????????????????????????????????????????????? | | ?????????????????????????????????????????????????? | | ?????????????????????????????????????????????????? | | ?????????????????????????????????????????????????? | | ?????????????????????????????????????????????????? | | ?????????????????????????????????????????????????? | | ?????????????????????????????????????????????????? | | ?????????????????????????????????????????????????? | | ?????????????????????????????????????????????????? | | ?????????????????????????????????????????????????? | +----------------------------------------------------+ Best States ------------- Heat Dissipation 53 Energy Generation 21 Energy Capacity 430 Matter Stores 300 Matter Capacity 300 Sight Range 16 Terrain Scan Density 10 Additional Mass Support 9 Base Temperature (-) 100 Armor Coverage 225 Evasion (%) 64 Item Schematics ----------------- Beam Rifle | -9/Materials | Scanalyzed Cooling System | -9/Materials | Scanalyzed Lrg. Battery | -9/Materials | Scanalyzed Robot Schematics ------------------ None Fabricated ------------ Nothing Alien Tech Used ----------------- None Achievements -------------- None Challenges ------------ None Game ------ Seed HeartArmorCycler Manual? 0 Play Time 00:48:32 Cumulative 5.6 hours Start 2024.08.12 @ 18:03:25 End 2024.08.12 @ 19:07:55 Sessions 1 Manual Loads 0 Difficulty Rogue Special Mode None Game No. 7 Rogue 7 Adventurer 0 Explorer 0 Win Type - Total 0 Types 0/0/0/0/0/0/0/0/0 Lore% 1 Gallery% 8 Achievement% 9 Wizard Run 0 Options --------- Layout 1 ASCII 0 Keyboard 0 Movement Mouse Keybinds 0 Fullscreen 2 Font 32/SmallcapsGlow Map View 50x35 Zoom Use 0% Tactical HUD 0 Map Filters NONE Filters NONE Steam 1 RUN: a40a5a8c-5c37-47b3-9772-70a0129fcf2c